Cogmind - Beta 13 *** ADVENTURER MODE // 2024.04.02 @ 07:14:57 Player: A Moose Result: Destroyed by H-55 Commando with Gauss Rifle Performance ------------- Evolutions (0) 0 Regions Visited (3) 600 Robots Destroyed (42) 210 Value Destroyed (1351) 1351 Prototype IDs (7) 140 Alien Tech Used (0) 0 Bonus (499) 499 TOTAL SCORE: 2800 Bonus ------- Follower Combat Kills 271 Aligned with FarCom 300 Friendly Fire -72 Cogmind --------- Core Integrity 0/250 Matter 293/300 Energy 100/100 System Corruption 7% Temperature Cool (0) Movement Core (100) Ox1 Location -10/Exiles Parts ------- > --- POWER (1) -------- (None) > --- PROPULSION (2) --- (None) > --- UTILITY (2) ------ Small Storage Unit Signal Interpreter > --- WEAPON (2) ------- (None) > --- INVENTORY (8) ---- Micro Nuclear Core Flying Fortress v7 Signal Interpreter Peak State ------------ > --- POWER ------------ Ion Engine > --- PROPULSION ------- Gravmag System Gravmag System > --- UTILITY ---------- Small Storage Unit Signal Interpreter > --- WEAPON ----------- AWS/Gauss > --- INVENTORY -------- Micro Nuclear Core Flying Fortress v7 Signal Interpreter Latent Energy Streamer [Rating: 31] Favorites ----------- Power Ion Engine Engine Ion Engine Propulsion Light Treads Treads Light Treads Hover Unit Gravmag System Utility Small Storage Unit Storage Small Storage Unit Processor Signal Interpreter Weapon Assault Rifle Energy Gun EM Pulse Gun Energy Cannon Latent Energy Streamer Ballistic Gun Assault Rifle Special Weapon Mining Laser Build | -11 -10 -10 -10 ------- Run | Yrd Mat Min Exi Slots Evolved . | . . . . Power . | . . . . Propulsion . | . . . . Utility . | . . . . Weapon . | . . . . Parts Attached 15 | 6 3 . 6 Power 3 | 1 . . 2 Engine 3 | 1 . . 2 Core . | . . . . Reactor . | . . . . Propulsion 4 | 2 . . 2 Treads 2 | 2 . . . Leg . | . . . . Wheel . | . . . . Hover 2 | . . . 2 Flight . | . . . . Utility 2 | 1 1 . . Device . | . . . . Storage 1 | 1 . . . Processor 1 | . 1 . . Hackware . | . . . . Protection . | . . . . Artifact . | . . . . Weapon 6 | 2 2 . 2 Energy Gun 1 | . 1 . . Energy Cannon 1 | . . . 1 Ballistic Gun 3 | 2 . . 1 Ballistic Cannon . | . . . . Launcher . | . . . . Special Weapon 1 | . 1 . . Impact Weapon . | . . . . Slashing Weapon . | . . . . Piercing Weapon . | . . . . Special Melee Weapon . | . . . . Unidentified Prototypes 2 | . . . 2 Parts Lost 5 | . . . 5 Power 1 | . . . 1 Propulsion 4 | . . . 4 Utility . | . . . . Weapon . | . . . . Highest Loss Streak 3 | . . . 3 To Critical Strikes . | . . . . Average Slot Usage (%) 95 | . 98 100 86 Engine 13 | . 14 14 13 Treads 27 | . 28 28 25 Storage 14 | . 14 14 14 Processor 13 | . 12 14 14 Energy Gun 8 | . 7 14 3 Ballistic Gun 15 | . 20 14 13 Naked Turns . | . . . . Heaviest Build 20 | 13 14 14 20 Greatest Support 40 | 40 40 40 40 Greatest Overweight (x) 2 | . . . 2 Average Overweight (x) . | . . . . Largest Inventory Capacity 8 | 8 8 8 8 Average Capacity 7 | 7 8 8 8 Most Carried 8 | 4 8 8 8 Average Carried 7 | 1 6 7 6 Final Capacity 8 | 8 8 8 8 Final Carried 8 | 2 7 8 6 Class Distribution -------------------- 100% | Mutant Dominant Class ---------------- Mutant | -10/Materials Mutant | -10/Mines Mutant | -10/Exiles Resources | -11 -10 -10 -10 ----------- Run | Yrd Mat Min Exi Matter Collected 418 | 194 165 24 35 Remotely . | . . . . Salvage Created 1517 | . 258 75 1184 Parts 69 | . 14 7 48 Haulers Intercepted . | . . . . Recyclers Shooed 1 | . 1 . . Parts Field Recycled . | . . . . Retrieved Matter . | . . . . Parts Self-Destructed . | . . . . Prevented . | . . . . Kills | -11 -10 -10 -10 ------- Run | Yrd Mat Min Exi Combat Hostiles Destroyed 38 | . 7 4 27 Guns 33 | . 6 2 25 AOE 4 | . 1 2 1 Classes Destroyed 7 | . 3 1 3 Worker 1 | . . 1 . Watcher 3 | . 3 . . Swarmer 8 | . 4 4 . Grunt 20 | . 3 . 17 Brawler 2 | . . . 2 Hunter 4 | . . . 4 Programmer 4 | . . . 4 Best Kill Streak 18 | . 3 3 18 Combat Bots Only 18 | . 3 2 18 Max Kills in Single Turn 3 | . 1 3 1 Gunslinging . | . . . . Exploded 2 | . 1 2 1 Melee . | . . . . Uniques/NPCs Destroyed . | . . . . Combat | -11 -10 -10 -10 -------- Run | Yrd Mat Min Exi Hostile Shots Fired 173 | . 21 16 136 Missed 46 | . 2 2 42 Damage Taken 1297 | . 134 120 1043 Core 259 | . 9 . 250 Absorbed by Shields . | . . . . Ignored by Resistances 381 | . 44 36 301 Core Remaining (%) 100 | 100 . . . Volleys Fired 30 | 1 20 8 1 Largest 2 | 2 2 2 1 Hottest 60 | 40 60 60 60 Shots Fired 166 | 2 39 16 109 Gun 165 | 2 39 16 108 Cannon 1 | . . . 1 Launcher . | . . . . Special . | . . . . Kinetic 147 | 2 29 8 108 Thermal . | . . . . Explosive . | . . . . Electromagnetic 19 | . 10 8 1 Robot Hit Streak 21 | . 6 3 21 Robot Miss Streak 3 | . 3 1 2 Penetration Max . | . . . . Secondary Targets 1 | . 1 . . Max Gunslinging Chain 1 | . 1 . . Autonomous 109 | . . . 109 Shots Hit Robots 132 | . 26 9 97 Core Hits 51 | . 13 6 32 Critical Kills 1 | . . . 1 Critical Parts Destroyed . | . . . . Critical Strikes 1 | . . . 1 Destroy 1 | . . . 1 Melee Attacks . | . . . . Impact . | . . . . Slashing . | . . . . Piercing . | . . . . Sneak Attacks . | . . . . Combat Hostiles . | . . . . Follow-up Attacks . | . . . . Damage Inflicted 3675 | . 386 250 3039 Guns 3207 | . 302 107 2798 Cannons 6 | . . . 6 Explosions 443 | . 82 126 235 Melee . | . . . . Ramming 19 | . 2 17 . Kinetic 3056 | . 185 73 2798 Thermal 208 | . 82 126 . Explosive . | . . . . Electromagnetic 392 | . 117 34 241 Impact . | . . . . Slashing . | . . . . Piercing . | . . . . Highest Corruption 7 | . . . 7 Average Corruption 4 | . . . 4 Corruption Purged . | . . . . Corruption Blocked . | . . . . Effects 2 | . . . 2 Matter Fused 1 | . . . 1 Heat Flow Errors 1 | . . . 1 Overload Shots . | . . . . Overflow Damage . | . . . . Projectiles . | . . . . Explosions . | . . . . Melee . | . . . . Knockbacks . | . . . . Impact . | . . . . Kinetic . | . . . . Secondary . | . . . . Self-Inflicted Damage 28 | . . 28 . Shots 1 | . . 1 . Rammed 8 | . 1 7 . Targets Rammed 8 | . 1 7 . Kicked . | . . . . Crushed . | . . . . Highest Temperature 278 | . 30 12 278 Average Temperature 74 | . 15 12 128 Received Heat Transfer 168 | . 42 . 126 Siege Activations . | . . . . Robots Corrupted 1 | . . . 1 Combat Hostiles 1 | . . . 1 Parts Fried 3 | . 1 . 2 Impact Corruptions . | . . . . Robots Melted . | . . . . Combat Hostiles . | . . . . Parts Melted . | . . . . Heat Transferred 450 | . 150 300 . Parts Sabotaged . | . . . . Parts Stolen . | . . . . Parts Stripped . | . . . . Power Chain Reactions 3 | . 2 1 . Latent Energy Used 200 | . . . 200 LE Corruption 3 | . . . 3 Alert | -11 -10 -10 -10 ------- Run | Yrd Mat Min Exi Peak Influence 243 | . 203 243 . Initial 16 | . . 16 . Average 68 | . 83 60 . Maximum Alert Level 1 | . 1 1 . Low Security (%) 96 | 100 98 93 . Level 1 3 | . 1 6 . Level 2 . | . . . . Level 3 . | . . . . Level 4 . | . . . . Level 5 . | . . . . High Security . | . . . . Max Security . | . . . . Squads Dispatched 2 | . 1 1 . Investigation 2 | . 1 1 . Extermination . | . . . . Reinforcement . | . . . . Assault . | . . . . Garrison . | . . . . Intercept . | . . . . Searches Triggered . | . . . . Construction Impeded . | . . . . Haulers Reinforced . | . . . . Active Scanning Responses . | . . . . Cargo Convoy Interrupts . | . . . . Stealth | -11 -10 -10 -10 --------- Run | Yrd Mat Min Exi Distress Signals 2 | . 1 1 . Communications Jammed . | . . . . Distress Signals . | . . . . Times Spotted 59 | . 13 15 31 Peak Tracking Total 12 | . 4 3 12 Tactical Retreats 1 | . 1 . . Traps | -11 -10 -10 -10 ------- Run | Yrd Mat Min Exi Traps Triggered . | . . . . Indirectly . | . . . . Trap Hack Attempts . | . . . . Triggered . | . . . . Disarmed 6 | . 6 . . Reprogrammed . | . . . . Reused . | . . . . Traps Extracted . | . . . . Installed . | . . . . Triggered . | . . . . Most Traps Carried 1 | . . 1 1 Machines | -11 -10 -10 -10 ---------- Run | Yrd Mat Min Exi Machines Disabled 8 | . 1 . 7 Max in Single Turn 1 | . 1 . 1 Machines Repaired . | . . . . Machines Dismantled . | . . . . Machines Sabotaged . | . . . . Overloaded Fab Kills . | . . . . Hacking | -11 -10 -10 -10 --------- Run | Yrd Mat Min Exi Machines Accessed 7 | . 6 1 . Terminals 6 | . 5 1 . Fabricators . | . . . . Repair Stations 1 | . 1 . . Recycling Units . | . . . . Scanalyzers . | . . . . Garrison Access . | . . . . Total Hacks 18 | . 15 3 . Successful 12 | . 11 1 . Failed 6 | . 4 2 . Catastrophic . | . . . . Database Lockouts . | . . . . Manual 1 | . . . 1 Terminals 17 | . 14 3 . Fabricators . | . . . . Repair Stations 1 | . 1 . . Recycling Units . | . . . . Scanalyzers . | . . . . Garrison Access . | . . . . Terminal Hacks 11 | . 10 1 . Record 1 | . . 1 . Prototype ID Bank 3 | . 3 . . Branch Access Points 1 | . 1 . . Alert Level 1 | . 1 . . Unreport Threat 1 | . 1 . . Locate Traps 1 | . 1 . . Disarm Traps 1 | . 1 . . Reinforcement Status 1 | . 1 . . Zone Layout 1 | . 1 . . Fabricator Hacks . | . . . . Repair Station Hacks 1 | . 1 . . Scan Component 1 | . 1 . . Recycling Unit Hacks . | . . . . Scanalyzer . | . . . . Garrison Access Hacks . | . . . . Unauthorized Hacks . | . . . . Terminals . | . . . . Fabricators . | . . . . Repair Stations . | . . . . Recycling Units . | . . . . Scanalyzers . | . . . . Garrison Access . | . . . . Data Cores Recovered . | . . . . Used . | . . . . Hacking Detections 6 | . 5 1 . Full Trace Events 4 | . 3 1 . Feedback Events . | . . . . Feedback Blocked . | . . . . Robot Schematics Acquired . | . . . . Robots Built . | . . . . Authchips . | . . . . Time . | . . . . Total Robot Build Rating . | . . . . Part Schematics Acquired . | . . . . Parts Built . | . . . . Authchips . | . . . . Time . | . . . . Total Part Build Rating . | . . . . Parts Repaired . | . . . . Time . | . . . . Parts Recycled . | . . . . Recycled Matter . | . . . . Retrieved Matter . | . . . . Retrieved Components . | . . . . Parts Scanalyzed . | . . . . Part Schematics Acquired . | . . . . Parts Damaged . | . . . . Bothacking | -11 -10 -10 -10 ------------ Run | Yrd Mat Min Exi Used RIF Installer . | . . . . Robots Hacked . | . . . . Non-combat . | . . . . Combat . | . . . . Robot Hacks Applied . | . . . . Relay Couplers Released . | . . . . Fabnet Peak Effective % . | . . . . Robots Rewired . | . . . . Allies Hacked . | . . . . Hacks Repelled . | . . . . Allies | -11 -10 -10 -10 -------- Run | Yrd Mat Min Exi Total Allies 6 | . . 6 . Largest Group 3 | . . 3 3 Highest-Rated Group 63 | . . 63 62 Highest-Rated Ally 31 | . . 31 31 Total Orders . | . . . . Ally Attacks 44 | . . 41 3 Total Damage 587 | . . 553 34 Kills 13 | . . 12 1 Allies Corrupted . | . . . . Allies Melted . | . . . . Intel | -11 -10 -10 -10 ------- Run | Yrd Mat Min Exi Robot Analysis Total . | . . . . Derelict Logs Recovered 2 | . . 2 . Drone Launches . | . . . . Drone Recoveries . | . . . . Exploration | -11 -10 -10 -10 ------------- Run | Yrd Mat Min Exi Turns Passed 2628 | 63 766 1003 796 Spaces Moved 1521 | 34 428 577 482 Core 15 | 6 . . 9 Treads 1457 | 28 428 577 424 Legs . | . . . . Wheels . | . . . . Hover 49 | . . . 49 Flight . | . . . . Fastest Speed 50 | 50 160 160 56 Average Speed 158 | 140 160 160 155 Slowest Speed 180 | 160 160 160 180 Overloaded Moves . | . . . . Propulsion Burnouts . | . . . . Robots Hopped . | . . . . Cave-ins Triggered . | . . . . Exploration Rate (%) 53 | 3 61 89 62 Regions Visited 3 Branch Regions 2 Pre-discovered Areas 1 | . . 1 . Known Exits Taken 2 | . 1 1 . Unknown Exits Taken 1 | 1 . . . Scrap Searched 1 | . . 1 . Spaces Dug . | . . . . Terrain Destroyed 36 | . 8 7 21 Melee . | . . . . Projectile 17 | . . . 17 AOE 19 | . 8 7 4 Terrain Rammed . | . . . . Walls Destroyed . | . . . . Machines Disabled . | . . . . Actions | -11 -10 -10 -10 --------- Run | Yrd Mat Min Exi Total 1692 | 48 472 637 535 Wait 79 | . 11 43 25 Move 1518 | 33 427 576 482 Hop . | . . . . Pick Up 25 | 8 8 2 7 Fast Attach . | . . . . Attach 12 | 6 1 . 5 Detach 2 | . . . 2 Swap 3 | . 2 . 1 Drop 15 | . 2 1 12 Fire 30 | 1 20 8 1 Melee . | . . . . Ram . | . . . . Kick . | . . . . Crush 8 | . 1 7 . Escape Stasis . | . . . . Rewire . | . . . . Trap . | . . . . Miscellaneous . | . . . . Route ------- -11/Scrapyard -10/Materials (discovered 4 exits: *Mat x3 / *Min) -10/Mines (discovered 3 exits: *Mat x2 / *Exi) -10/Exiles (discovered 2 exits: Min x2) History --------- Turn | Location | Event 14 | -11/Scrapyard | Discovered new exit (range 15) 64 | -11/Scrapyard | Entered Materials 90 | -10/Materials | Discovered new exit (range 16) 130 | -10/Materials | Identified exit to Mines 241 | -10/Materials | Discovered new exit (range 13) 264 | -10/Materials | Identified exit to Materials 300 | -10/Materials | Build established: Mutant 670 | -10/Materials | Discovered exit to Materials (range 6) 805 | -10/Materials | Discovered exit to Materials (range 16) 830 | -10/Materials | Entered Mines 951 | -10/Mines | Learned location of Zion (-7) 988 | -10/Mines | Found a hidden stash of uninstalled traps 1069 | -10/Mines | Assisted by bots powering up and referring to "LRC-V3" 1256 | -10/Mines | Discovered exit to Materials (range 5) 1257 | -10/Mines | Escorted by a lone wolf Derelict 1692 | -10/Mines | Discovered exit to Materials (range 11) 1809 | -10/Mines | Deemed a non-threat by the Exiles lab entrance 1809 | -10/Mines | Discovered new exit (range 5) 1813 | -10/Mines | Identified exit to Exiles 1833 | -10/Mines | Entered Exiles 1833 | -10/Exiles | Accompanied by 3 allies 1834 | -10/Exiles | Identified exit to Mines 1863 | -10/Exiles | Led the pair of lost Derelicts to a safe place 1875 | -10/Exiles | Met 8R-AWN 1905 | -10/Exiles | Met EX-HEX 1960 | -10/Exiles | Met EX-BIN 1982 | -10/Exiles | Aligned with FarCom system 1984 | -10/Exiles | Given EX-Vault access code 2020 | -10/Exiles | Opened EX-Vault 2030 | -10/Exiles | Found Prototype Ballistic Gun 2033 | -10/Exiles | Identified AWS/Gauss 2065 | -10/Exiles | Warned to stay clear of 0b10 Research branches 2090 | -10/Exiles | Exiles lab attacked by MAIN.C 2324 | -10/Exiles | Destroyed 8 combat bots 2413 | -10/Exiles | Found Prototype Energy Cannon 2474 | -10/Exiles | Found Prototype Flight Unit 2587 | -10/Exiles | Lost 3 parts (1p2n) 2605 | -10/Exiles | Identified Latent Energy Streamer 2606 | -10/Exiles | Core integrity fell below 50% 2625 | -10/Exiles | Core integrity fell below 20% 2628 | -10/Exiles | Destroyed 18 combat bots 2629 | -10/Exiles | Destroyed by H-55 Commando with Gauss Rifle Last Messages --------------- AWS/Gauss suddenly breaks down. Penetrated by Slug. P-60 Hacker resets G-34 Mercenary, system corruption cleaned. Dropped Broken AWS/Gauss. Identified Latent Energy Streamer. Heat Sink fried. Aluminum Leg fried. G-34 Mercenary destroyed. Machine disabled. Penetrated by Slug. H-55 Commando system terminally corrupted. [Achievement: Power Corrupts] System corrupted: Matter fused (-7). Gravmag System destroyed. Dropped Latent Energy Streamer. Dropped Ion Engine. Penetrated by Slug. Slug penetrates Wall. Penetrated by Slug. Map ----- +----------------------------------------------------+ | ?????????????????????????????????????????#""X" | | ?????????????????????????????????????????#" | | ?????????????????????????????????????????#" ## | | ?????????????????????????????????????????#""""""?# | | ?????????????????????????????????????????##"###??# | | ?????????????????????????????????????????? ??????# | | ?????????????????????????????????????????????????# | | ????????????????????????????????????????????????## | | ??????????????#######?????????????????????????#" | | ######???????#!!! "#?????????????????????????#" | | #""???????# "#?????????????????????????# | | ??????# "#?????????????????????????# | | " #????## ""#?????????????#???????????# | | " #####" ""#???????????? """????????#" | | ?# ##" ""#????????????" """????????## | | ??# #"" #??????????????" ????????## | | ?????# #?????????????"" ????????#" | | ????????# ##????????????"" "????????#" | | ????????### h "#???????????? ""????????## | | ???????###" ###???????????" "?????????## | | ??????""""" ##??????????# #????????##" | | ???! "###"" ######???### ###?######"" | | ??#! "#?##" h """#####X# #"###""""""" | | ??#! ##??#" g """"" " "" | | ??# !""""""###???#"# " " "[ | | ??#########??????#### @ %% | | ????????????????????### g h [ | | ??????????????????????### [==%!=[% | | ????????????????????????## !=%![!=| | | ?????????????????????????## *!!%%!%= | | ??????????????????????????## l g =%=%=*/% | | ???????????????????????????#" g * [%[%! | | ??????????????????????????##" [!%=**|["# | | ??????????????????????????#" "##### | | ??????????????????????????#""" ] ##???? | | ?????????????????????????#""" % * % "#????? | | ?????????????????????????#""" "#????? | | ?????????????????????????#"" % =""#????? | | ?????????????????????????#""" !* #????? | | ?????????????????????????#"" %=[ %???? | | ?????????????????????????##"" * %=[*%?? | | ??????????????????????????#""" %= =%[![!%[[? | | ??????????????????????????## ! =%!=? | | ???????????????????????????#" ** [=%? | | ????????????????????????????"""" [%%/ "?? | | ????????????????????????????"" =! ""??? | | ????????????????????????????? " "????? | | ??????????????????????????????? ??????? | | ??????????????????????????????? ?????????? | | ??????????????????????????????? ???????????? | +----------------------------------------------------+ Best States ------------- Heat Dissipation 25 Energy Generation 10 Energy Capacity 250 Matter Stores 300 Matter Capacity 300 Sight Range 16 Terrain Scan Density 10 Resistance: KI 20 Resistance: TH 20 Resistance: EX 20 Resistance: EM 20 Resistance: I 20 Resistance: S 20 Resistance: P 20 Evasion (%) 40 Recoil Reduction 2 Offensive Hacking 10 Item Schematics ----------------- None Robot Schematics ------------------ None Fabricated ------------ Nothing Alien Tech Used ----------------- None Achievements -------------- Everything Is Under Control Power Corrupts Challenges ------------ None Game ------ Seed ReactionCloakMatter Manual? 0 Play Time 00:24:42 Cumulative 4.9 hours Start 2024.04.02 @ 06:38:27 End 2024.04.02 @ 07:14:57 Sessions 2 Manual Loads 0 Difficulty Adventurer Special Mode None Game No. 8 Rogue 4 Adventurer 4 Explorer 0 Win Type - Total 0 Types 0/0/0/0/0/0/0/0/0 Lore% 10 Gallery% 11 Achievement% 10 Wizard Run 0 Options --------- Layout 1 ASCII 0 Keyboard 0 Movement Numpad Keybinds 0 Fullscreen 1 Font 24/Smallcaps Map View 50x35 Zoom Use 0% Tactical HUD 0 Map Filters NONE Filters NONE Steam 1 RUN: 876b7eb6-b94b-4863-b9ec-1b67d046e887